Workbook

Sheet Tax Rates (hidden)
E3: Weekly
D4: Tax Year: | E4: =Inputs!E3 -> 2019/2020
G8: Weekly | H8: Weekly
G9: 2017/2018 | H9: 2018/2019 | I9: 2019/2020 | J9: 2020/2021 | K9: 2021/2022 | L9: 2022/2023
A10: National Minimum Wage: | E10: =INDEX(TableTaxRates[#Data],ROW()-ROW(TableTaxRates[[#Headers],[2017/2018]]),MATCH($E$4,TableTaxRates[#Headers],0)) -> 8.21 | G10: 7.50 | H10: 7.83 | I10: 8.21
A11: Employers National Insurance Rate | D11: =INDEX(TableTaxRates[#Data],ROW()-ROW(TableTaxRates[[#Headers],[2017/2018]]),MATCH($E$4,TableTaxRates[#Headers],0)) -> 13.80% | E11: =INDEX(TableTaxRates[#Data],ROW()-ROW(TableTaxRates[[#Headers],[2017/2018]]),MATCH($E$4,TableTaxRates[#Headers],0))+ INDEX(TableTaxRates[#Data],ROW()+1-ROW(TableTaxRates[[#Headers],[2017/2018]]),MATCH($E$4,TableTaxRates[#Headers],0)) -> 14.30% | G11: 13.80% | H11: 13.80% | I11: 13.80%
A12: Apprentice Levy | D12: =INDEX(TableTaxRates[#Data],ROW()-ROW(TableTaxRates[[#Headers],[2017/2018]]),MATCH($E$4,TableTaxRates[#Headers],0)) -> 0.50% | H12: 0.5% | I12: 0.5%
A13: NIC Exempt Limit | C13: Employee | D13: =E13*52 -> £8,632.00 | E13: =INDEX(TableTaxRates[#Data],ROW()-ROW(TableTaxRates[[#Headers],[2017/2018]]),MATCH($E$4,TableTaxRates[#Headers],0)) -> 166.00 | G13: 157.00 | H13: 162.00 | I13: 166.00
A14: Holiday Pay Rate | E14: =INDEX(TableTaxRates[#Data],ROW()-ROW(TableTaxRates[[#Headers],[2017/2018]]),MATCH($E$4,TableTaxRates[#Headers],0)) -> 12.07% | G14: 12.07% | H14: 12.07% | I14: 12.07%
A15: NIC Exempt Limit | C15: Employer | D15: =E15*52 -> £8,632.00 | E15: =INDEX(TableTaxRates[#Data],ROW()-ROW(TableTaxRates[[#Headers],[2017/2018]]),MATCH($E$4,TableTaxRates[#Headers],0)) -> 166.00 | G15: 157.00 | H15: 162.00 | I15: 166.00
A16: NIC Upper Limit | D16: =E16*InputWeekWorkedinYear -> £46,176.00 | E16: =INDEX(TableTaxRates[#Data],ROW()-ROW(TableTaxRates[[#Headers],[2017/2018]]),MATCH($E$4,TableTaxRates[#Headers],0)) -> 962.00 | G16: 866.00 | H16: 892.00 | I16: 962.00
A17: NIC Rate Between Exempt and Upper | E17: =INDEX(TableTaxRates[#Data],ROW()-ROW(TableTaxRates[[#Headers],[2017/2018]]),MATCH($E$4,TableTaxRates[#Headers],0)) -> 12.00% | G17: 12.00% | H17: 12.00% | I17: 12.00%
A18: NIC Rate Over Upper Limit | E18: =INDEX(TableTaxRates[#Data],ROW()-ROW(TableTaxRates[[#Headers],[2017/2018]]),MATCH($E$4,TableTaxRates[#Headers],0)) -> 2.00% | G18: 2.00% | H18: 2.00% | I18: 2.00%
A19: Personal Tax Allowance | E19: =INDEX(TableTaxRates[#Data],ROW()-ROW(TableTaxRates[[#Headers],[2017/2018]]),MATCH($E$4,TableTaxRates[#Headers],0)) -> £12,500.00 | G19: £11,500.00 | H19: £11,850.00 | I19: £12,500.00
A20: Basic Rate Limit | C20: 20% Basic Rate Limit | E20: =INDEX(TableTaxRates[#Data],ROW()-ROW(TableTaxRates[[#Headers],[2017/2018]]),MATCH($E$4,TableTaxRates[#Headers],0)) -> £37,500.00 | G20: £33,500.00 | H20: £34,500.00 | I20: £37,500.00
A21: Higher Rate Limit | C21: 40% Higher Rate Limit | E21: =INDEX(TableTaxRates[#Data],ROW()-ROW(TableTaxRates[[#Headers],[2017/2018]]),MATCH($E$4,TableTaxRates[#Headers],0)) -> £150,000.00 | G21: £150,000.00 | H21: £150,000.00 | I21: £150,000.00
A22: Basic Tax Rate | E22: =INDEX(TableTaxRates[#Data],ROW()-ROW(TableTaxRates[[#Headers],[2017/2018]]),MATCH($E$4,TableTaxRates[#Headers],0)) -> 20.00% | G22: 20.00% | H22: 20.00% | I22: 20.00%
A23: Higher Tax Rate | E23: =INDEX(TableTaxRates[#Data],ROW()-ROW(TableTaxRates[[#Headers],[2017/2018]]),MATCH($E$4,TableTaxRates[#Headers],0)) -> 40.00% | G23: 40.00% | H23: 40.00% | I23: 40.00%
A24: Over Higher Rate Limit | C24: 45% Rate | E24: =INDEX(TableTaxRates[#Data],ROW()-ROW(TableTaxRates[[#Headers],[2017/2018]]),MATCH($E$4,TableTaxRates[#Headers],0)) -> 45.00% | G24: 45.00% | H24: 45.00% | I24: 45.00%
A25: Taper Threashold | E25: =INDEX(TableTaxRates[#Data],ROW()-ROW(TableTaxRates[[#Headers],[2017/2018]]),MATCH($E$4,TableTaxRates[#Headers],0)) -> £100,000.00 | G25: £100,000.00 | H25: £100,000.00 | I25: £100,000.00
A26: Student Loan Plan 1 | E26: =INDEX(TableTaxRates[#Data],ROW()-ROW(TableTaxRates[[#Headers],[2017/2018]]),MATCH($E$4,TableTaxRates[#Headers],0)) -> £18,935.00 | G26: £18,330.00 | H26: £18,330.00 | I26: £18,935.00
A27: Student Loan Plan 2 | E27: =INDEX(TableTaxRates[#Data],ROW()-ROW(TableTaxRates[[#Headers],[2017/2018]]),MATCH($E$4,TableTaxRates[#Headers],0)) -> £25,725.00 | G27: £21,000.00 | H27: £21,000.00 | I27: £25,725.00
A28: Sudent Loan % | E28: =INDEX(TableTaxRates[#Data],ROW()-ROW(TableTaxRates[[#Headers],[2017/2018]]),MATCH($E$4,TableTaxRates[#Headers],0)) -> 9.00% | G28: 9.00% | H28: 9.00% | I28: 9.00%
A29: Employer Pension % | E29: =INDEX(TableTaxRates[#Data],ROW()-ROW(TableTaxRates[[#Headers],[2017/2018]]),MATCH($E$4,TableTaxRates[#Headers],0)) -> 3% | G29: 1% | H29: 2% | I29: 3%
A30: Employee Pension % | E30: =INDEX(TableTaxRates[#Data],ROW()-ROW(TableTaxRates[[#Headers],[2017/2018]]),MATCH($E$4,TableTaxRates[#Headers],0)) -> 5% | G30: 1% | H30: 3% | I30: 5%
A31: Lower Eanrings for pension | E31: =INDEX(TableTaxRates[#Data],ROW()-ROW(TableTaxRates[[#Headers],[2017/2018]]),MATCH($E$4,TableTaxRates[#Headers],0)) -> £118.00 | G31: £113.00 | H31: £116.00 | I31: £118.00
A32: Upper earnings for pension | E32: =INDEX(TableTaxRates[#Data],ROW()-ROW(TableTaxRates[[#Headers],[2017/2018]]),MATCH($E$4,TableTaxRates[#Headers],0)) -> £962.00 | G32: £866.00 | H32: £892.00 | I32: £962.00
A33: VAT | E33: =INDEX(TableTaxRates[#Data],ROW()-ROW(TableTaxRates[[#Headers],[2017/2018]]),MATCH($E$4,TableTaxRates[#Headers],0)) -> 20.00% | G33: 20.00% | H33: 20.00% | I33: 20.00%
A34: Corporation Tax | E34: =INDEX(TableTaxRates[#Data],ROW()-ROW(TableTaxRates[[#Headers],[2017/2018]]),MATCH($E$4,TableTaxRates[#Headers],0)) -> 19.00% | G34: 19.00% | H34: 19.00% | I34: 19.00%
A35: VAT Credit Amount | E35: =INDEX(TableTaxRates[#Data],ROW()-ROW(TableTaxRates[[#Headers],[2017/2018]]),MATCH($E$4,TableTaxRates[#Headers],0)) -> 15.50% | G35: 15.50% | H35: 15.50% | I35: 15.50%
A36: Dividend Allowance | E36: =INDEX(TableTaxRates[#Data],ROW()-ROW(TableTaxRates[[#Headers],[2017/2018]]),MATCH($E$4,TableTaxRates[#Headers],0)) -> £2,000.00 | G36: £5,000.00 | H36: £2,000.00 | I36: £2,000.00
A37: 0 to 34500 | B37: Dividend income above dividend allowance up to higher rate | E37: =INDEX(TableTaxRates[#Data],ROW()-ROW(TableTaxRates[[#Headers],[2017/2018]]),MATCH($E$4,TableTaxRates[#Headers],0)) -> 7.50% | G37: 7.50% | H37: 7.50% | I37: 7.50%
A38: £34,501 - £150,000 | B38: Dividend income at or below the £150,000 higher rate tax limit | E38: =INDEX(TableTaxRates[#Data],ROW()-ROW(TableTaxRates[[#Headers],[2017/2018]]),MATCH($E$4,TableTaxRates[#Headers],0)) -> 32.50% | G38: 32.50% | H38: 32.50% | I38: 32.50%
A39: Over £150,000 | B39: Dividend income above the higher rate tax limit | E39: =INDEX(TableTaxRates[#Data],ROW()-ROW(TableTaxRates[[#Headers],[2017/2018]]),MATCH($E$4,TableTaxRates[#Headers],0)) -> 38.10% | G39: 38.10% | H39: 38.10% | I39: 38.10%
A40: ="Milage First "&B40 -> Milage First 10000 | B40: 10,000 | E40: =INDEX(TableTaxRates[#Data],ROW()-ROW(TableTaxRates[[#Headers],[2017/2018]]),MATCH($E$4,TableTaxRates[#Headers],0)) -> £0.45 | G40: £0.45 | H40: £0.45 | I40: £0.45
A41: ="Milage After "&B40 -> Milage After 10000 | E41: =INDEX(TableTaxRates[#Data],ROW()-ROW(TableTaxRates[[#Headers],[2017/2018]]),MATCH($E$4,TableTaxRates[#Headers],0)) -> £0.25 | G41: £0.25 | H41: £0.25 | I41: £0.25

Sheet Tax, NI, SL Calc (hidden)
B1: UK Taxation | C1: ='Tax Rates'!E4 -> 2019/2020
C2: =InputWeekWorkedinYear&" Weeks" -> 48 Weeks | D2: Week
B3: Annual Income (Gross) | C3: =(SUM(TaxablePay)-IF(InputShowPension="YES",Output!G34,0)) -> £105,143.85 | D3: =C3/InputWeekWorkedinYear -> £2,190.50 | F3: Monthly take home pay : | H3: =C8/12 -> £5,707.34
B4: Total PAYE tax | C4: =C38 -> £30,586.31 | D4: £637.21 | F4: Weekly take home pay : | H4: =C8/52 -> £1,317.08
B5: Total National Insurance | C5: =C51 -> £6,069.44 | D5: £126.45
B6: Student Loan Payment | C6: =IF(UPPER(LEFT(C11,1))<>"N",C57,0) -> £0.00 | D6: £0.00
B7: Total deductions | C7: =C6+C5+C4 -> £36,655.75 | D7: £763.66
B8: NET PAY | C8: =C3-C7-C13 -> £68,488.10 | D8: £1,426.84
B10: Age | C10: 30 | D10: years | F10: N/A
B11: Student Loan Payment | C11: =InputStudentLoan -> No | D11: (Plan1/Plan2/No)
B12: Blind | C12: No | D12: (Yes/No) | F12: N/A
B13: Pension Contributions | D13: per year | F13: N/A
B15: Personal Allowance
B17: Basic | C17: =G17 -> £12,500.00 | F17: Basic | G17: =PersonalTaxAllowance -> £12,500.00
B18: Age related contribution | C18: =(IF(C10<65,0,IF(C10<75,G18-G17,G19-G17))) -> £0.00 | F18: Age 65-74 | G18: £11,500.00 | H18: N/A
B19: Age related taper deduction | C19: =IF((C3-G22)<0,0,IF((C3-G22)/2>C18,C18,(C3-G22)/2)) -> £0.00 | F19: Age 75 and over | G19: £11,500.00 | H19: N/A
B20: Allowance after age adjust | C20: =C17+C18-C19 -> £12,500.00 | F20: Blind persons allowance | G20: £2,320.00 | H20: N/A
B22: Taper deduction | C22: =IF(((C3-C13)-G23)<0,0, IF(((C3-C13)-G23)/2>C20,C20, ((C3-C13)-G23)/2)) -> £2,571.93 | F22: Age related threshold | G22: £27,700.00 | H22: N/A
F23: Taper threshold | G23: =TaperThreshhold -> £100,000.00
B24: Personal Allowance | C24: =C20-C22 -> £9,928.07 | D24: =C24/52 -> £190.92
B26: Income Tax
B28: Taxable Income | C28: =C3-G30-C13 -> £95,215.78 | D28: =C28/52 -> £1,831.07 | F28: Personal Allowance | G28: =C24 -> £9,928.07
F29: Blind persons allowance | G29: =IF(UPPER(LEFT(C12,1))="Y",G20,0) -> £0.00 | H29: N/A
F30: Total Allowances | G30: =G29+G28 -> £9,928.07
C32: Tax | D32: Carry Over | F32: Rate | G32: Start of Band | H32: End of Band | I32: Difference
B33: =F33*100&"% Rate" -> 0% Rate | C33: =IF(C28>=G33,IF(C28>=I33,I33*F33,C28*F33),0) -> £0.00 | D33: =IF((C28-I33)>0,C28-I33,0) -> £95,215.78 | F33: 0.00% | G33: £0.00 | H33: £0.00 | I33: =H33-G33 -> £0.00 | J33: *
B34: =F34*100&"% Rate" -> 20% Rate | C34: =IF(D33>0,IF(D33>=I34,I34*F34,D33*F34),0) -> £7,500.00 | D34: =IF((D33-I34)>0,D33-I34,0) -> £57,715.78 | F34: 20.00% | G34: =IF(H33>=1,H33+1,H33) -> £0.00 | H34: ='Tax Rates'!E20 -> £37,500.00 | I34: =H34-G34 -> £37,500.00
B35: =F35*100&"% Rate" -> 40% Rate | C35: =IF(D34>0,IF(D34>=I35,I35*F35,D34*F35),0) -> £23,086.31 | D35: =IF((D34-I35)>0,D34-I35,0) -> £0.00 | F35: 40.00% | G35: =H34+1 -> £37,501.00 | H35: ='Tax Rates'!E21 -> £150,000.00 | I35: =H35-G35+1 -> £112,500.00
B36: =F36*100&"% Rate" -> 45% Rate | C36: =IF(D35>0,IF(D35>=I36,I36*F36,D35*F36),0) -> £0.00 | D36: =IF((D35-I36)>0,D35-I36,0) -> £0.00 | F36: 45.00% | G36: =H35 -> £150,000.00 | H36: £99,999,999.00 | I36: =H36-G36+1 -> £99,850,000.00
B38: Total Income Tax | C38: =SUM(C33:C36) -> £30,586.31 | D38: =C38/52 -> £588.20 | F38: * The 10% rate only applies to savings so it is zeroed.
B40: National Insurance
B42: Weekly Income (Gross) | C42: =C3/52 -> £2,022.00 | F42: State Pension Age | G42: 65 | H42: years
C44: Tax | D44: Carry Over | F44: Rate | G44: Start of Band | H44: End of Band | I44: Difference
B45: =F45*100&"% Rate" -> 0% Rate | C45: =IF(C42>=G45,IF(C42>=I45,I45*F45,C42*F45),0) -> £0.00 | D45: =IF((C42-I45)>0,C42-I45,0) -> £1,856.00 | F45: 0.00% | G45: £0.00 | H45: ='Tax Rates'!E15 -> £166.00 | I45: =H45-G45 -> £166.00
B46: =F46*100&"% Rate" -> 12% Rate | C46: =IF(D45>0,IF(D45>=I46,I46*F46,D45*F46),0) -> £95.52 | D46: =IF((D45-I46)>0,D45-I46,0) -> £1,060.00 | F46: 12.00% | G46: =H45+0.01 -> £166.01 | H46: ='Tax Rates'!E16 -> £962.00 | I46: =H46-G46+0.01 -> £796.00
B47: =F47*100&"% Rate" -> 2% Rate | C47: =IF(D46>0,IF(D46>=I47,I47*F47,D46*F47),0) -> £21.20 | D47: =IF((D46-I47)>0,D46-I47,0) -> £0.00 | F47: 2.00% | G47: =H46+0.01 -> £962.01 | H47: £99,999,999.99 | I47: =H47-G47+0.01 -> £99,999,037.99
B49: Total Weekly NI | C49: =SUM(C45:C47) -> £116.72
B50: Age related deduction | C50: =IF(C10>=G42,C49*52,0) -> £0.00
B51: Total Annual NI | C51: =(C49*52)-C50 -> £6,069.44 | D51: =C51/52 -> £116.72
B53: Student Loan Repayment
B55: Threshold | C55: =IF(RIGHT(C11,1)="1",G56,IF(RIGHT(C11,1)="2",H56,0)) -> £0.00 | G55: Plan 1 | H55: Plan 2
B56: Income above threshold | C56: =IF(C3-C55<0,0,C3-C55) -> £105,143.85 | F56: Repayment Threshold | G56: ='Tax Rates'!E26 -> £18,935.00 | H56: ='Tax Rates'!E27 -> £25,725.00
B57: Repayment (if applicable) | C57: =FLOOR(C56*G57,1) -> £9,462.00 | D57: =C57/52 -> £181.96 | F57: Repayment Rate | G57: 9.00% | H57: 9.00%
B59: Copyright (c) 2002-2017 PaulBanks.org, Some rights reserved
B60: See :http://creativecommons.org/licenses/by-nc-sa/2.0/uk/ for 'license' information
B62: WARNING: This spreadsheet, and accompanying documentation, is distributed in the hope that it will be useful, but WITHOUT ANY WARRANTY; without even the implied warranty of MERCHANTABILITY or FITNESS FOR A PARTICULAR PURPOSE. The author is not a qualified accountant and this spreadsheet does not constitute any form of financial or legal advice and should not be used for this purpose
B64: Usage instructions.
B65: ="1) Enter gross annual income in C3." -> 1) Enter gross annual income in C3.
B66: 2) Correct details for age, student loan, etc
B67: ="3) PAYE Tax, NI and student loan contributions are calculated automatically for the tax year "&C1&"." -> 3) PAYE Tax, NI and student loan contributions are calculated automatically for the tax year 2019/2020.
B68: 4) Editable fields are highlighted so you can alter any other aspect of the sheet using them.
B69: 5) If you want to edit the entire sheet, un-protect the cells using the spreadsheet menu. There is no password.

Sheet Tax, NI, SL Calc (2) (hidden)
B1: UK Taxation | C1: ='Tax Rates'!E4 -> 2019/2020
C2: =InputWeekWorkedinYear&" Weeks" -> 48 Weeks | D2: Week
B3: Annual Income (Gross) | C3: =(SUM(TaxablePay2)-IF(InputShowPension="YES",Output!I34,0)) -> £119,194.96 | D3: =C3/InputWeekWorkedinYear -> £2,483.23 | F3: Monthly take home pay : | H3: =C8/12 -> £6,152.29
B4: Total PAYE tax | C4: =C38 -> £39,016.98 | D4: £812.85 | F4: Weekly take home pay : | H4: =C8/52 -> £1,419.76
B5: Total National Insurance | C5: =C51 -> £6,350.46 | D5: £132.30
B6: Student Loan Payment | C6: =IF(UPPER(LEFT(C11,1))<>"N",C57,0) -> £0.00 | D6: £0.00
B7: Total deductions | C7: =C6+C5+C4 -> £45,367.44 | D7: £945.15
B8: NET PAY | C8: =C3-C7-C13 -> £73,827.53 | D8: £1,538.07
B10: Age | C10: 30 | D10: years | F10: N/A
B11: Student Loan Payment | C11: =InputStudentLoan -> No | D11: (Plan1/Plan2/No)
B12: Blind | C12: No | D12: (Yes/No) | F12: N/A
B13: Pension Contributions | D13: per year | F13: N/A
B15: Personal Allowance
B17: Basic | C17: =G17 -> £12,500.00 | F17: Basic | G17: =PersonalTaxAllowance -> £12,500.00
B18: Age related contribution | C18: =(IF(C10<65,0,IF(C10<75,G18-G17,G19-G17))) -> £0.00 | F18: Age 65-74 | G18: £11,500.00 | H18: N/A
B19: Age related taper deduction | C19: =IF((C3-G22)<0,0,IF((C3-G22)/2>C18,C18,(C3-G22)/2)) -> £0.00 | F19: Age 75 and over | G19: £11,500.00 | H19: N/A
B20: Allowance after age adjust | C20: =C17+C18-C19 -> £12,500.00 | F20: Blind persons allowance | G20: £2,320.00 | H20: N/A
B22: Taper deduction | C22: =IF(((C3-C13)-G23)<0,0, IF(((C3-C13)-G23)/2>C20,C20, ((C3-C13)-G23)/2)) -> £9,597.48 | F22: Age related threshold | G22: £27,700.00 | H22: N/A
F23: Taper threshold | G23: =TaperThreshhold -> £100,000.00
B24: Personal Allowance | C24: =C20-C22 -> £2,902.52 | D24: =C24/52 -> £55.82
B26: Income Tax
B28: Taxable Income | C28: =C3-G30-C13 -> £116,292.44 | D28: =C28/52 -> £2,236.39 | F28: Personal Allowance | G28: =C24 -> £2,902.52
F29: Blind persons allowance | G29: =IF(UPPER(LEFT(C12,1))="Y",G20,0) -> £0.00 | H29: N/A
F30: Total Allowances | G30: =G29+G28 -> £2,902.52
C32: Tax | D32: Carry Over | F32: Rate | G32: Start of Band | H32: End of Band | I32: Difference
B33: =F33*100&"% Rate" -> 0% Rate | C33: =IF(C28>=G33,IF(C28>=I33,I33*F33,C28*F33),0) -> £0.00 | D33: =IF((C28-I33)>0,C28-I33,0) -> £116,292.44 | F33: 0.00% | G33: £0.00 | H33: £0.00 | I33: =H33-G33 -> £0.00 | J33: *
B34: =F34*100&"% Rate" -> 20% Rate | C34: =IF(D33>0,IF(D33>=I34,I34*F34,D33*F34),0) -> £7,500.00 | D34: =IF((D33-I34)>0,D33-I34,0) -> £78,792.44 | F34: 20.00% | G34: =IF(H33>=1,H33+1,H33) -> £0.00 | H34: ='Tax Rates'!E20 -> £37,500.00 | I34: =H34-G34 -> £37,500.00
B35: =F35*100&"% Rate" -> 40% Rate | C35: =IF(D34>0,IF(D34>=I35,I35*F35,D34*F35),0) -> £31,516.98 | D35: =IF((D34-I35)>0,D34-I35,0) -> £0.00 | F35: 40.00% | G35: =H34+1 -> £37,501.00 | H35: ='Tax Rates'!E21 -> £150,000.00 | I35: =H35-G35+1 -> £112,500.00
B36: =F36*100&"% Rate" -> 45% Rate | C36: =IF(D35>0,IF(D35>=I36,I36*F36,D35*F36),0) -> £0.00 | D36: =IF((D35-I36)>0,D35-I36,0) -> £0.00 | F36: 45.00% | G36: =H35 -> £150,000.00 | H36: £99,999,999.00 | I36: =H36-G36+1 -> £99,850,000.00
B38: Total Income Tax | C38: =SUM(C33:C36) -> £39,016.98 | D38: =C38/52 -> £750.33 | F38: * The 10% rate only applies to savings so it is zeroed.
B40: National Insurance
B42: Weekly Income (Gross) | C42: =C3/52 -> £2,292.21 | F42: State Pension Age | G42: 65 | H42: years
C44: Tax | D44: Carry Over | F44: Rate | G44: Start of Band | H44: End of Band | I44: Difference
B45: =F45*100&"% Rate" -> 0% Rate | C45: =IF(C42>=G45,IF(C42>=I45,I45*F45,C42*F45),0) -> £0.00 | D45: =IF((C42-I45)>0,C42-I45,0) -> £2,126.21 | F45: 0.00% | G45: £0.00 | H45: ='Tax Rates'!E15 -> £166.00 | I45: =H45-G45 -> £166.00
B46: =F46*100&"% Rate" -> 12% Rate | C46: =IF(D45>0,IF(D45>=I46,I46*F46,D45*F46),0) -> £95.52 | D46: =IF((D45-I46)>0,D45-I46,0) -> £1,330.21 | F46: 12.00% | G46: =H45+0.01 -> £166.01 | H46: ='Tax Rates'!E16 -> £962.00 | I46: =H46-G46+0.01 -> £796.00
B47: =F47*100&"% Rate" -> 2% Rate | C47: =IF(D46>0,IF(D46>=I47,I47*F47,D46*F47),0) -> £26.60 | D47: =IF((D46-I47)>0,D46-I47,0) -> £0.00 | F47: 2.00% | G47: =H46+0.01 -> £962.01 | H47: £99,999,999.99 | I47: =H47-G47+0.01 -> £99,999,037.99
B49: Total Weekly NI | C49: =SUM(C45:C47) -> £122.12
B50: Age related deduction | C50: =IF(C10>=G42,C49*52,0) -> £0.00
B51: Total Annual NI | C51: =(C49*52)-C50 -> £6,350.46 | D51: =C51/52 -> £122.12
B53: Student Loan Repayment
B55: Threshold | C55: =IF(RIGHT(C11,1)="1",G56,IF(RIGHT(C11,1)="2",H56,0)) -> £0.00 | G55: Plan 1 | H55: Plan 2
B56: Income above threshold | C56: =IF(C3-C55<0,0,C3-C55) -> £119,194.96 | F56: Repayment Threshold | G56: ='Tax Rates'!E26 -> £18,935.00 | H56: ='Tax Rates'!E27 -> £25,725.00
B57: Repayment (if applicable) | C57: =FLOOR(C56*G57,1) -> £10,727.00 | D57: =C57/52 -> £206.29 | F57: Repayment Rate | G57: 9.00% | H57: 9.00%
B59: Copyright (c) 2002-2017 PaulBanks.org, Some rights reserved
B60: See :http://creativecommons.org/licenses/by-nc-sa/2.0/uk/ for 'license' information
B62: WARNING: This spreadsheet, and accompanying documentation, is distributed in the hope that it will be useful, but WITHOUT ANY WARRANTY; without even the implied warranty of MERCHANTABILITY or FITNESS FOR A PARTICULAR PURPOSE. The author is not a qualified accountant and this spreadsheet does not constitute any form of financial or legal advice and should not be used for this purpose
B64: Usage instructions.
B65: ="1) Enter gross annual income in C3." -> 1) Enter gross annual income in C3.
B66: 2) Correct details for age, student loan, etc
B67: ="3) PAYE Tax, NI and student loan contributions are calculated automatically for the tax year "&C1&"." -> 3) PAYE Tax, NI and student loan contributions are calculated automatically for the tax year 2019/2020.
B68: 4) Editable fields are highlighted so you can alter any other aspect of the sheet using them.
B69: 5) If you want to edit the entire sheet, un-protect the cells using the spreadsheet menu. There is no password.

Sheet Personal Tax (hidden)
B2: Personal Tax Implications: | G2: VAT
C3: £
G4: Net Income | H4: =Output!D12 -> 120,000.00
B5: Salary | C5: =Output!D34 -> 8,632.00 | G5: VAT Received | H5: =(H4*(1+'Tax Rates'!E33)-H4) -> 24,000.00
B6: Previous Employment | C6: 0
A7: Taper | B7: Dividends from Investments | C7: =Output!D28 -> 89,352.72 | G7: Flat Rate | H7: ='Tax Rates'!E35 -> 15.50%
A8: =TaperThreshhold -> 100,000.00
A9: =IF(C9>A8,ROUND((C9-A8)/2,0),0) -> 0.00 | B9: Total Gross Taxable Income | C9: =C5+C6+C7 -> 97,984.72 | G9: VAT PAYABLE | H9: =(H4+H5)*H7 -> 22,320.00
B11: Personal Tax Allowance | C11: =IF('Tax Rates'!E19-A9<0,0,'Tax Rates'!E19-A9) -> 12,500.00
G12: VAT PROFIT | H12: =H5-H9 -> 1,680.00
B13: Taxable Income | C13: =C9-C11 -> 85,484.72 | D13: Personal Tax Allowance | F13: ='Tax Rates'!E19 -> 12,500
D14: Persona Tax Threshold | F14: ='Tax Rates'!E20 -> 37,500
D15: Dividend allowance | F15: ='Tax Rates'!E36 -> 2,000
B16: Tax Due | D16: Total Threshold before further tax | F16: =F13+F14 -> 50,000
D17: Lose £1 allowance per £2 over £100000 Taxable Income Threshold | F17: ='Tax Rates'!E25 -> 100,000
B18: Tax Due on Employment Income | C18: =IF((C5+C6-C11)*F18<0,0,(C5+C6-C11)*F18) -> 0.00 | D18: Basic Rate Tax | F18: ='Tax Rates'!E22 -> 20%
B19: Tax Due on Dividend Income over and above basic rate threshold | C19: =IF(IF(C9>F16,(F16-F13-F15),(C9-C11-F15)*'Tax Rates'!E37)<0,0,IF(C9>F16,(F16-F13-F15)*'Tax Rates'!E37,(C9-C11-F15)*'Tax Rates'!E37)) -> 2,662.50
B20: Tax Due on Dividend Income Higher rate | C20: =IF(C9>F16,(C9-F16)*'Tax Rates'!E38,0) -> 15,595.03 | D20: Higher Rate Tax | F20: ='Tax Rates'!E23 -> 40%
B21: Tax Due on Dividend Income Additional rate | C21: =IF(C9>F17,(C9-F17)*'Tax Rates'!E39,0) -> 0.00
D22: Dividend income above dividend allowance up to higher rate | F22: ='Tax Rates'!E37 -> 7.50%
B23: Total Tax Due | C23: =C18+C19+C20 -> 18,257.53 | D23: Dividend income at or below the £150,000 higher rate tax limit | F23: ='Tax Rates'!E38 -> 32.50%
D24: Dividend income above the higher rate tax limit | F24: ='Tax Rates'!E39 -> 38.10%

Sheet Inputs
M1: t
E2: Tax Year: | H2: Input
A3: DEFAULTS | E3: =H7 -> 2019/2020 | H3: Hours worked | I3: 5
A4: 52 | E4: Weeks worked in a year | F4: =I8 -> 48 | H4: Rate of pay | I4: £500.00
B5: Input | E5: Notes
A6: INPUT | B6: Hours worked 1 | C6: =I3 -> 5 | E6: =C6 -> 5 | H6: Tax Year:
A7: INPUT | B7: Rate of pay 1 | C7: =I4 -> £500.00 | E7: =C6*C7 -> £2,500.00 | H7: 2019/2020
A8: INPUT | B8: Hours worked 2 | C8: 0 | E8: =C8 -> 0 | H8: Weeks worked in a year | I8: 48
A9: INPUT | B9: Rate of pay 2 | C9: £0.00 | E9: =C8*C9 -> £0.00
A10: INPUT | B10: Hours worked 3 | C10: 0 | E10: =C10 -> 0 | H10: Uplifted rate
A11: INPUT | B11: Rate of pay 3 | C11: £0.00 | E11: =C10*C11 -> £0.00 | H11: Original rate | I11: =C7 -> £500.00
A12: INPUT | B12: Hours worked 4 | C12: 0 | E12: =C12 -> 0 | H12: ="Apprentice Levy is charged at "&TEXT(ApprenticeLevyPercentage,"0.0%")&" of your weekly pay" -> Apprentice Levy is charged at 0.5% of your weekly pay | I12: =I11*ApprenticeLevyPercentage -> £2.50
A13: INPUT | B13: Rate of pay 4 | C13: £0.00 | E13: =C12*C13 -> £0.00 | H13: ="Employers' NI is charged at "&TEXT(EmployersNICPercentage,"0.0%;-0.0%")&" on earnings"&IF(NICLimitRemoval<>"t"," above "&TEXT(EmployersNIC,"£0;-£0")&" per week","") -> Employers' NI is charged at 13.8% on earnings | I13: =((C7*C6)-IF(NICLimitRemoval<>"t",0,EmployersNIC))*EmployersNICPercentage/5 -> £64.42
E14: =SUM(E6,E8,E10,E12) -> 5 | F14: Total Hours | H14: New Rate | I14: =SUM(I11:I13) -> £566.92
E15: =SUM(E7,E9,E11,E13) -> £2,500.00 | F15: Gross Pay
A16: 0 | B16: Number of miles per week | C16: 0.00
A17: 0 | B17: Food per week | C17: £0.00 | H17: ="Current rate of pay is "&TEXT(C7,"£#,#0.00;-£#,#0.0") -> Current rate of pay is £500.00
A18: 0 | B18: Travel | C18: £0.00
A19: 0 | B19: Other | C19: £0.00 | H19: ="Through a limited company the estimated take home pay per week is "&TEXT(Output!D49,"£#,#0.00;-£#,#0.0") -> Through a limited company the estimated take home pay per week is £1,660.98
A20: 0 | B20: Company Insurance | C20: £0.00
H21: ="If the rate of pay was to remain the same then take home pay with Workr Umbrella would be "&TEXT(Output!G49,"£#,#0.00;-£#,#0.0") -> If the rate of pay was to remain the same then take home pay with Workr Umbrella would be £1,426.84
A22: 190 | B22: PSC Fee (less VAT) | C22: £190.00 | D22: =C22*(1+'Tax Rates'!E33) -> £228.00
A23: Yes | B23: VAT registered | C23: Yes | H23: ="At the current rate of pay the equivalent salary on a permanent role would be "&TEXT(TaxablePay,"£#,#0.00;-£#,#0.0") -> At the current rate of pay the equivalent salary on a permanent role would be £105,143.85
A24: 0 | B24: Extra Pension PSC (amount per month) | C24: 0
H25: To get the same rate of pay with Workr Umbrella the apprentice levy and employers NI should be added
C26: Comparison Required: Yes/No
A27: Yes | B27: Umbrella | C27: Yes | H27: ="The uplifted rate would be "&TEXT(I14,"£#,#0.00;-£#,#0.0") -> The uplifted rate would be £566.92
A29: input | B29: Umbrella Fee/margin | C29: £20.00 | H29: ="With an uplifted rate the Workr Umbrella take home would be "&TEXT(Output!I49,"£#,#0.00;-£#,#0.0") -> With an uplifted rate the Workr Umbrella take home would be £1,538.07
A31: No | B31: Expenses allowed Umbrella? | C31: No | H31: ="The equivalent salary in a permanent role would be "&TEXT(TaxablePay2,"£#,#0.00;-£#,#0.0") -> The equivalent salary in a permanent role would be £119,194.96
A33: No | B33: Second Job? | C33: No
A35: No | B35: Student Loan | C35: No
A37: No | B37: Show Pension? | C37: No
A39: No | B39: Retain Holiday Pay | C39: No
A41: Yes | B41: Pays Employer's NI | C41: Yes
A43: Yes | B43: Pays Employee's NI | C43: Yes
A45: Yes | B45: TAX | C45: Yes

Sheet Output
G4: Current | I4: New
D5: Current | G5: Umbrella | I5: Uplifted
B6: Company | D6: PSC | G6: CE+ | I6: Umbrella
D8: =InputWeekWorkedinYear -> 48 | G8: =InputWeekWorkedinYear -> 48 | I8: =InputWeekWorkedinYear -> 48
B10: Weekly Income | D10: =Inputs!E15 -> 2,500.00 | G10: =Inputs!E15 -> 2,500.00 | I10: =Inputs!C6*Inputs!I14 -> 2,834.59
B12: Annual Income | D12: =SUM(D10*Inputs!F4) -> 120,000.00 | G12: =SUM(D10*Inputs!F4) -> 120,000.00 | I12: =SUM(I10*Inputs!F4) -> 136,060.42
B13: VAT Credit | D13: =IF(Inputs!C23="Yes",'Personal Tax'!H12,0) -> 1,680.00 | G13: - | I13: -
D14: =SUM(D12,D13) -> 121,680.00 | G14: =SUM(G12,G13) -> 120,000.00 | I14: =SUM(I12,I13) -> 136,060.42
B17: Travel costs | D17: =-((IF(Inputs!C16*'Tax Rates'!E40>'Tax Rates'!B40,'Tax Rates'!B40*'Tax Rates'!E40+(Inputs!C16-'Tax Rates'!B40)*'Tax Rates'!E41,Inputs!C16*'Tax Rates'!E40)+(Inputs!C18))*Inputs!F4) -> 0.00 | G17: =IF(INPUTExpensesAllowedUmbrella="Yes",Output!D17,0) -> 0.00 | I17: =IF(INPUTExpensesAllowedUmbrella="Yes",Output!D17,0) -> 0.00
B18: Meal costs | D18: =-Inputs!C17*Inputs!F4 -> 0.00 | G18: =IF(INPUTExpensesAllowedUmbrella="Yes",Output!D18,0) -> 0.00 | I18: =IF(INPUTExpensesAllowedUmbrella="Yes",Output!D18,0) -> 0.00
B19: Other costs | D19: =-Inputs!C19 -> 0.00 | G19: =IF(INPUTExpensesAllowedUmbrella="Yes",Output!D19,0) -> 0.00 | I19: =IF(INPUTExpensesAllowedUmbrella="Yes",Output!D19,0) -> 0.00
B20: Company Insurance | D20: =-InputCompanyInsurance*12 -> 0.00 | G20: =IF(INPUTExpensesAllowedUmbrella="Yes",Output!D20,0) -> 0.00 | I20: =IF(INPUTExpensesAllowedUmbrella="Yes",Output!D20,0) -> 0.00
B21: Pension Contributions | D21: =-Inputs!C24 -> 0.00 | G21: =IF(INPUTExpensesAllowedUmbrella="Yes",Output!D21,0) -> 0.00 | I21: =IF(INPUTExpensesAllowedUmbrella="Yes",Output!D21,0) -> 0.00
B22: Accountancy Fees/Margin | D22: =-Inputs!D22*12 -> (2,736) | G22: =-InputMargin*InputWeekWorkedinYear -> (960) | I22: =-InputMargin*InputWeekWorkedinYear -> (960)
B23: Salary | D23: =-'Tax Rates'!D15 -> (8,632.00) | G23: =SUM(G14:G22) -> 119,040.00 | I23: =SUM(I14:I22) -> 135,100.42
B24: Employers NI & App Levy | D24: 0.00 | G24: =IF(SUM(SUM(G10+SUM(SUM(G22+SUM(G17:G20))/InputWeekWorkedinYear)))>'Tax Rates'!E15,SUM(SUM(G10+SUM(SUM(G22+SUM(G17:G20))/InputWeekWorkedinYear)-Limit))/SUM(1+'Tax Rates'!E11)*'Tax Rates'!E11)*InputWeekWorkedinYear*-1 -> (13,896.15) | I24: =IF(SUM(SUM(I10+SUM(SUM(I22+SUM(I17:I20))/InputWeekWorkedinYear)))>'Tax Rates'!E15,SUM(SUM(I10+SUM(SUM(I22+SUM(I17:I20))/InputWeekWorkedinYear)-Limit))/SUM(1+'Tax Rates'!E11)*'Tax Rates'!E11)*InputWeekWorkedinYear*-1 -> (15,905.46)
B25: Pre-Tax Profit | D25: =D14+SUM(D17:D24) -> 110,312.00 | G25: - | I25: -
B26: Corporation Tax | D26: =-D25*'Tax Rates'!E34 -> (20,959.28) | G26: - | I26: -
B27: Post Tax Profit | D27: =D25+D26 -> 89,352.72 | G27: - | I27: -
B28: Dividends Declared | D28: =D27 -> 89,352.72 | G28: - | I28: -
B30: Profit Retained in the company | D30: 0.00 | G30: 0.00 | I30: 0.00
B32: Contractor
B34: Gross Salary | D34: ='Tax Rates'!D15 -> 8,632.00 | G34: =SUM(G23:G24) -> 105,143.85 | I34: =SUM(I23:I24) -> 119,194.96
B35: Less - PAYE on Salary | D35: 0.00 | G35: =IF(INPUTNOTAX="No",0,IF(InputSecondJob="Yes", SUM('Tax Rates'!E22*SUM(TaxablePay-IF(InputShowPension="YES",H35,0))),'Tax, NI, SL Calc'!C4)) -> 30,586.31 | I35: =IF(INPUTNOTAX="No",0,IF(InputSecondJob="Yes", SUM('Tax Rates'!E22*SUM(TaxablePay2-IF(InputShowPension="YES",H35,0))),'Tax, NI, SL Calc (2)'!C4)) -> 39,016.98
B36: Less - NIC on Salary | D36: 0.00 | G36: =IF(INPUTPAYSEMPLOYEESNI="No",0,'Tax, NI, SL Calc'!C51/InputWeekWorkedinYear)*InputWeekWorkedinYear -> 6,069.44 | I36: =IF(INPUTPAYSEMPLOYEESNI="No",0,'Tax, NI, SL Calc (2)'!C51/InputWeekWorkedinYear)*InputWeekWorkedinYear -> 6,350.46
B38: Dividends | D38: =D28 -> 89,352.72 | G38: - | I38: -
B39: Less - Tax on dividends | D39: =-'Personal Tax'!C23 -> (18,257.53) | G39: - | I39: -
B41: Expenses | D41: =-SUM(D17:D19) -> 0.00 | G41: =IF(INPUTExpensesAllowedUmbrella="Yes",SUM(Inputs!D16,Inputs!C17,Inputs!C18,Inputs!C19),0) -> 0.00 | I41: =IF(INPUTExpensesAllowedUmbrella="Yes",SUM(Inputs!D16,Inputs!C17,Inputs!C18,Inputs!C19),0) -> 0.00
B43: Total Income After All Taxes | D43: =SUM(D34:D41) -> 79,727.19 | G43: =TaxablePay-G35-G36+G41 -> 68,488.10 | I43: =TaxablePay2-I35-I36+I41 -> 73,827.53
B49: Weekly Take home pay | D49: =D43/Inputs!$F$4 -> £1,660.98 | G49: =G43/Inputs!$F$4 -> £1,426.84 | I49: =I43/Inputs!$F$4 -> £1,538.07
B51: Monthly Take home pay | D51: =D43/12 -> £6,643.93 | G51: =G43/12 -> £5,707.34 | I51: =I43/12 -> £6,152.29
B53: Take home pay as % of annual income | D53: =D43/D12 -> 66% | G53: =G43/G12 -> 57% | I53: =I43/G12 -> 62%
B55: This is only an estimate, your pay may differ slightly dependant on your circumstances
B57: Assumptions
B59: ="1 - Uses tax rates and allowances for "&Inputs!E3 -> 1 - Uses tax rates and allowances for 2019/2020
B60: 2 - Assumes no other sources of income
B61: 3 - Based on income/expenses as detailed
B62: 4 - If you work more weeks or incur less expenses taxes may increase
B63: 5 - If you work less weeks or incur more expenses taxes may decrease
